[Event "Polish University-ch Women 2024"]
[Site "Lublin"]
[Date "2024.02.23"]
[Round "4.8"]
[White "Dmochowska, Agnieszka"]
[Black "Kubicka, Anna"]
[Result "0-1"]
[ECO "E28"]
[WhiteElo "2001"]
[BlackElo "2278"]
[Annotator "RC"]
[PlyCount "114"]
[EventDate "2024.02.22"]
[EventType "swiss"]
[EventCountry "POL"]
[SourceTitle "playchess.com"]
[Source "ChessBase"]
[SourceQuality "1"]
[TimeControl "600+3"]

1. d4 {[%emt 0:00:01]} Nf6 {[%emt 0:00:04]} 2. c4 {[%emt 0:00:01]} e6 {[%emt 0:00:03]} 3. Nc3 {[%emt 0:00:03]} Bb4 {[%emt 0:00:06]} 4. e3 {[%emt 0:00:03]} O-O {[%emt 0:00:04]} 5. Bd3 {[%emt 0:00:07]} b6 {[%emt 0:00:08]} 6. a3 {[%emt 0:00:10]} Bxc3+ {[%emt 0:00:02]} 7. bxc3 {[%emt 0:00:02]} Bb7 {[%emt 0:00:02]} 8. f3 {[%emt 0:00:02]} c5 {[%emt 0:00:04]} 9. Ne2 {[%emt 0:00:02]} Nc6 {[%emt 0:00:24]} 10. O-O {[%emt 0:00:17]} d6 {[%emt 0:00:09]} 11. e4 {[%emt 0:00:28]} Nd7 {[%emt 0:00:45]} 12. f4 {[%emt 0:02:40]} e5 {[%emt 0:00:03]} 13. fxe5 {[%emt 0:00:18]} dxe5 {[%emt 0:00:02]} 14. d5 {[%emt 0:00:01]} Na5 {[%emt 0:00:22]} 15. Ng3 {[%emt 0:00:04]} Bc8 {[%emt 0:02:24]} 16. Ra2 {[%emt 0:01:08]} Nb7 {[%emt 0:00:20]} 17. Nf5 {[%emt 0:01:21]} Nb8 {[%emt 0:00:13]} 18. Raf2 {[%emt 0:00:14]} Bxf5 {[%emt 0:00:04]} 19. Rxf5 {[%emt 0:00:01]} f6 {[%emt 0:00:14]} 20. Qg4 {[%emt 0:00:35]} Nd6 {[%emt 0:00:28]} 21. R5f3 {[%emt 0:00:49]} Qd7 {[%emt 0:00:30]} 22. Qg3 {[%emt 0:00:57]} Qe7 {[%emt 0:00:35]} 23. Qh4 {[%emt 0:00:17]} Nd7 {[%emt 0:00:25]} 24. Rh3 {[%emt 0:00:02]} g6 {[%emt 0:00:03]} 25. Bh6 {[%emt 0:00:03]} Rf7 {[%emt 0:00:03]} 26. Rhf3 {[%emt 0:00:03]} a6 {[%emt 0:01:02]} 27. Qg3 {[%emt 0:00:19]} b5 {[%emt 0:00:16]} 28. h4 {[%emt 0:00:06]} bxc4 {[%emt 0:00:04]} 29. Bc2 {[%emt 0:00:01]} Kh8 {[%emt 0:00:18]} 30. Qh3 {[%emt 0:00:16]} Rb8 {[%emt 0:00:26]} 31. Bc1 {[%emt 0:00:15]} Rg8 {[%emt 0:00:09]} 32. Be3 {[%emt 0:00:17]} Nb5 {[%emt 0:00:05]} 33. Ba4 {[%emt 0:00:05]} Nxc3 {[%emt 0:00:09]} 34. Bxd7 {[%emt 0:00:17]} Qxd7 {[%emt 0:00:01]} 35. Bxc5 {[%emt 0:00:05]} Qxh3 {[%emt 0:00:05]} 36. Rxh3 {[%emt 0:00:05]} Nxe4 {[%emt 0:00:02]} 37. Bb4 {[%emt 0:00:01]} Rd8 {[%emt 0:00:09]} 38. Re3 {[%emt 0:00:01]} Nd6 {[%emt 0:00:14]} 39. Rc1 {[%emt 0:00:02]} Nf5 {[%emt 0:00:07]} 40. Re4 {[%emt 0:00:01]} Rxd5 {[%emt 0:00:03]} 41. Rexc4 {[%emt 0:00:01]} a5 {[%emt 0:00:10]} 42. Be1 {[%emt 0:00:01]} Nd4 {[%emt 0:01:12]} 43. Rc8+ {[%emt 0:00:01]} Kg7 {[%emt 0:00:00]} 44. R1c5 {[%emt 0:00:05]} Rxc5 {[%emt 0:00:00]} 45. Rxc5 {[%emt 0:00:01]} a4 {[%emt 0:00:00]} 46. Rc4 {[%emt 0:00:03]} Rb7 {[%emt 0:00:00]} 47. Rxa4 {[%emt 0:00:11]} Rb1 {[%emt 0:00:00]} 48. Kf2 {[%emt 0:00:01]} Rb2+ {[%emt 0:00:00]} 49. Kg3 {[%emt 0:00:08]} Nf5+ {[%emt 0:00:00]} 50. Kh2 {[%emt 0:00:01]} Ne3 {[%emt 0:00:00]} 51. Ra7+ {[%emt 0:00:05]} Kh6 {[%emt 0:00:00]} 52. Bb4 {[%emt 0:00:02]} Rxg2+ {[%emt 0:00:00]} 53. Kh3 {[%emt 0:00:01]} g5 {[%emt 0:00:07]} 54. hxg5+ {[%emt 0:00:07]} fxg5 {[%emt 0:00:04]} 55. Bf8+ {[%emt 0:00:10]} Kg6 {[%emt 0:00:03]} 56. Bc5 {[%emt 0:00:13]} Re2 {[%emt 0:00:03]} 57. Rg7+ {[%emt 0:00:00]} Kxg7 {[%emt 0:00:28]} 0-1

[Event "Polish University-ch Women 2024"]
[Site "Lublin"]
[Date "2024.02.23"]
[Round "4.9"]
[White "Kucharska, Honorata"]
[Black "Hampel, Anna"]
[Result "1-0"]
[ECO "B92"]
[WhiteElo "2137"]
[BlackElo "1697"]
[Annotator "NA RC"]
[PlyCount "50"]
[EventDate "2024.02.22"]
[EventType "swiss"]
[EventCountry "POL"]
[SourceTitle "playchess.com"]
[Source "ChessBase"]
[SourceQuality "1"]
[TimeControl "600+3"]

1. e4 {[%emt 0:00:01]} c5 {[%emt 0:00:00]} 2. Nf3 {[%emt 0:00:03]} d6 {[%emt 0:00:01]} 3. d4 {[%emt 0:00:02]} cxd4 {[%emt 0:00:01]} 4. Nxd4 {[%emt 0:00:02]} Nf6 {[%emt 0:00:02]} 5. Nc3 {[%emt 0:00:02]} a6 {[%emt 0:00:01]} 6. Be2 {[%emt 0:00:01]} e5 {[%emt 0:00:02]} 7. Nb3 {[%emt 0:00:03]} Be6 {[%emt 0:00:02]} 8. Be3 {[%emt 0:00:04]} Be7 {[%emt 0:00:03]} 9. O-O {[%emt 0:00:06]} Nbd7 {[%emt 0:00:02]} 10. a4 {[%emt 0:00:02]} O-O {[%emt 0:00:07]} 11. Bf3 {[%emt 0:00:05]} Rc8 {[%emt 0:00:23]} 12. Re1 {[%emt 0:00:11]} Ne8 {[%emt 0:00:20]} 13. Nd2 {[%emt 0:00:34]} Bg5 {[%emt 0:01:01]} 14. Nf1 {[%emt 0:00:20]} Nb6 {[%emt 0:00:51]} 15. Bxg5 {[%emt 0:02:42]} Qxg5 {[%emt 0:00:01]} 16. a5 {[%emt 0:00:05]} Nc4 {[%emt 0:02:02]} 17. Qb1 {[%emt 0:01:05]} Rc7 {[%emt 0:02:18]} 18. Ne3 {[%emt 0:00:44]} Nxe3 {[%emt 0:00:58]} 19. Rxe3 {[%emt 0:00:02]} f5 {[%emt 0:00:17]} 20. exf5 {[%emt 0:00:13]} Rxf5 {[%emt 0:00:02]} 21. Qd1 {[%emt 0:00:25]} Rd7 {[%emt 0:01:20]} 22. Bd5 {[%emt 0:00:15]} Bxd5 {[%emt 0:00:10]} 23. Qxd5+ {[%emt 0:00:06]} Kh8 {[%emt 0:00:01]} 24. Ne4 {[%emt 0:00:08]} Nf6 {[%emt 0:00:26]} 25. Qe6 {[%emt 0:00:59]} Qf4 {[%emt 0:00:45]} 1-0

[Event "Polish University-ch Women 2024"]
[Site "Lublin"]
[Date "2024.02.23"]
[Round "4.10"]
[White "Lascar, Radoslawa"]
[Black "Cieslak, Wiktoria"]
[Result "0-1"]
[ECO "B86"]
[WhiteElo "1804"]
[BlackElo "1868"]
[Annotator "NA"]
[PlyCount "48"]
[EventDate "2024.02.22"]
[EventType "swiss"]
[EventCountry "POL"]
[SourceTitle "playchess.com"]
[Source "ChessBase"]
[SourceQuality "1"]
[TimeControl "600+3"]

1. e4 {[%emt 0:00:31]} c5 {[%emt 0:00:01]} 2. Nf3 {[%emt 0:00:03]} d6 {[%emt 0:00:02]} 3. d4 {[%emt 0:00:01]} cxd4 {[%emt 0:00:02]} 4. Nxd4 {[%emt 0:00:01]} Nf6 {[%emt 0:00:03]} 5. Nc3 {[%emt 0:00:01]} a6 {[%emt 0:00:02]} 6. Bc4 {[%emt 0:00:02]} e6 {[%emt 0:00:02]} 7. Bb3 {[%emt 0:00:04]} Be7 {[%emt 0:00:02]} 8. g4 {[%emt 0:00:10]} Nc6 {[%emt 0:00:19]} 9. Be3 {[%emt 0:00:28]} Nxd4 {[%emt 0:00:29]} 10. Bxd4 {[%emt 0:02:35]} e5 {[%emt 0:00:02]} 11. Be3 {[%emt 0:01:05]} Bxg4 {[%emt 0:00:03]} 12. f3 {[%emt 0:00:28]} Be6 {[%emt 0:00:10]} 13. Nd5 {[%emt 0:00:28]} Nxd5 {[%emt 0:02:17]} 14. Bxd5 {[%emt 0:00:04]} Qc7 {[%emt 0:00:02]} 15. c3 {[%emt 0:01:56]} Rc8 {[%emt 0:00:20]} 16. Qb3 {[%emt 0:00:18]} Bxd5 {[%emt 0:00:10]} 17. Qxd5 {[%emt 0:00:02]} Qc6 {[%emt 0:00:09]} 18. Qb3 {[%emt 0:00:26]} b5 {[%emt 0:00:09]} 19. a4 {[%emt 0:00:18]} bxa4 {[%emt 0:00:29]} 20. Rxa4 {[%emt 0:00:04]} O-O {[%emt 0:00:12]} 21. h4 {[%emt 0:00:43]} Rb8 {[%emt 0:00:08]} 22. Qa2 {[%emt 0:00:01]} Rxb2 {[%emt 0:00:10]} 23. Qxb2 {[%emt 0:00:31]} Qxa4 {[%emt 0:00:01]} 24. Rg1 {[%emt 0:00:49]} Bxh4+ {[%emt 0:00:06]} 0-1

[Event "Polish University-ch Women 2024"]
[Site "Lublin"]
[Date "2024.02.23"]
[Round "5.1"]
[White "Sliwicka, Alicja"]
[Black "Wikar, Martyna"]
[Result "1-0"]
[ECO "B32"]
[WhiteElo "2309"]
[BlackElo "2214"]
[Annotator "TA"]
[PlyCount "73"]
[EventDate "2024.02.22"]
[EventType "swiss"]
[EventCountry "POL"]
[SourceTitle "playchess.com"]
[Source "ChessBase"]
[SourceQuality "1"]
[TimeControl "600+3"]

{[%evp 14,73,31,20,44,12,13,0,0,0,0,0,0,-18,-7,-27,-8,-1,0,-12,-5,-20,-9,-10,-16,-25,-26,-37,-14,-39,-16,-20,0,0,0,0,21,26,30,18,122,77,135,147,227,218,2215,-29,0,0,0,0,0,0,0,0,29991,29992,29992,29993,29997,29998]} 1. e4 {[%emt 0:00:01]} c5 {[%emt 0:00:02]} 2. Nf3 {[%emt 0:00:02][%cal Bg1f3,Bf3d4,Bd4b5,Bb5a3,Ba3c4][%mdl 32]} Nc6 {[%emt 0:00:01]} 3. d4 {[%emt 0:00:01]} cxd4 {[%emt 0:00:01]} 4. Nxd4 {[%emt 0:00:02]} e5 {[%emt 0:00:02]} 5. Nb5 {[%emt 0:00:03]} d6 {[%emt 0:00:01]} 6. N1c3 {[%emt 0:00:04]} a6 {[%emt 0:00:02]} 7. Na3 {[%emt 0:00:02]} Be6 {[%emt 0:00:01]} 8. Nc4 {[%emt 0:00:03]} Rb8 {[%emt 0:00:02]} 9. Ne3 {[%emt 0:00:22]} Nf6 {[%emt 0:00:06]} 10. Be2 {[%emt 0:00:11]} g6 {[%emt 0:00:17] The position is equal.} 11. O-O {[%emt 0:00:03]} Bg7 {[%emt 0:00:03]} 12. f3 {[%emt 0:00:34]} O-O {[%emt 0:00:04]} 13. Kh1 {[%emt 0:00:26]} Ne7 {[%emt 0:01:11]} 14. Bc4 {[%emt 0:00:38]} b5 {[%emt 0:00:21]} 15. Bb3 {[%emt 0:00:23]} b4 {[%emt 0:00:21]} 16. Ncd5 {[%emt 0:00:04]} Nexd5 {[%emt 0:00:21]} 17. exd5 {[%emt 0:00:48]} Bd7 {[%emt 0:00:16]} 18. a3 {[%emt 0:00:16]} a5 {[%emt 0:01:26]} 19. axb4 {[%emt 0:00:03]} axb4 {[%emt 0:00:50]} 20. Bd2 {[%emt 0:00:53]} e4 {[%emt 0:01:36]} 21. f4 {[%emt 0:00:32]} Qb6 {[%emt 0:00:52]} 22. Nc4 {[%emt 0:01:38]} Qc5 {[%emt 0:00:36]} 23. Be3 {[%emt 0:01:54]} Qxd5 {[%emt 0:00:09]} 24. Bd4 {[%emt 0:00:01][%cal Of4f5]} Bg4 {[%emt 0:00:31]} 25. Qd2 {[%emt 0:00:15][%cal Of4f5]} Qh5 {[%emt 0:00:18][%cal Oe4e3]} 26. Nxd6 {[%emt 0:00:26][%cal Of4f5] And now f5! would win.} Rbd8 {[%emt 0:00:31]} (26... Be6 $1 $11) 27. Qxb4 {[%emt 0:00:11][%cal Od6f7] Nxf7! would now be deadly. White is much more active.} Be2 {[%emt 0:00:08] [#]} (27... Nd5 $142 28. Bxd5 Qxd5 29. Bxg7 Kxg7) 28. Rfe1 $1 $16 {[%emt 0:00:17]} Ng4 {[%emt 0:00:08]} (28... Bf3 $16) 29. Bg1 $18 {[%emt 0:00:02][%cal Od6f7] Strongly threatening Nxf7!} (29. Rxe2 $2 Qxh2#) 29... Bh6 $2 {[%emt 0:00:38]} (29... Nh6 30. Ra5 (30. Nxe4 Bf3 $16) (30. Qxe4 Rxd6 31. Qxe2 Qxe2 $16) 30... Nf5 31. Nxf5 (31. Nxe4 Bf3 $16) 31... gxf5) 30. Ra7 $2 {[%emt 0:00:36]} (30. Nxf7 $18 Rxf7 31. Bxf7+ (31. Rxe2 Bf8 $18) 31... Kg7 32. Qe7 (32. Rxe2 Nf6 $18) (32. Qxe4 Nf6 $18) 32... Bxf4 33. Be8+ (33. Qxd8 $2 Nf2+ 34. Bxf2 Qxh2#) (33. Rxe2 Bg5 $18) 33... Kh6 34. Qf8+ (34. Qxd8 $2 Nf2+ 35. Bxf2 Qxh2#) (34. Rxe2 Bxh2 35. g3 Bxg3+ 36. Kg2 Qh4 $18) 34... Kg5 35. Ra5+ (35. Rxe2 Bxh2 36. Qe7+ Kh6 $18) 35... Ne5 36. Rxe5+ Bxe5 37. Be3+ (37. Qe7+ Bf6 $18) 37... Kg4 38. h3+ (38. Rxe2 $2 Qxh2#) 38... Qxh3+ 39. gxh3+ Kxh3 40. Qh6+ (40. Rxe2 Rd1+ 41. Bg1 Rxg1+ 42. Kxg1 Bd4+ 43. Kh1 Be5 44. Bd7+ Kh4 45. Qh6+ Kg3 46. Qh3+ Kf4 47. Qg4#) 40... Bh5 41. Bb5) 30... Bxf4 {[%emt 0:00:03]} (30... Nxh2 $5 31. Qc5 (31. Bxh2 Bxf4 32. Kg1 Qxh2+ 33. Kf2 Bf3 34. Rg1 Qg3+ 35. Kf1 e3) 31... Rxd6 32. Qxh5 Bxh5 33. Bxh2 e3 $16) 31. Nxe4 {[%emt 0:00:22] Threatens to win with Nf6+.} (31. Bxf7+ $2 Rxf7 32. Qc5 Qxc5 (32... Bxd6 $2 33. Qxh5 gxh5 34. Rxf7 $19) (32... Rxd6 $2 33. Rxf7 Kxf7 34. Qxh5 $19) 33. Bxc5 Bxd6 $19) (31. Nxf7 $2 Nf2+ 32. Bxf2 Qxh2#) 31... Bxh2 $1 {[%emt 0:00:16]} 32. Nf6+ $1 {[%emt 0:00:10]} Nxf6 {[%emt 0:00:02]} 33. Bxh2 {[%emt 0:00:02]} Ng4 {[%emt 0:00:11]} 34. Qf4 {[%emt 0:00:01][%cal Rb3f7] Chess con chili.} Nxh2 $4 {[%emt 0:00:08][%mdl 8192] [#]} (34... g5 35. Bxf7+ Rxf7 36. Qxf7+ Qxf7 37. Rxf7 Kxf7 38. Rxe2) (34... Qc5 $11 35. Rxf7 (35. Rxe2 {gets mated.} Rd1+) (35. Bxf7+ Kg7 $11) 35... Rxf7 36. Qxf7+ (36. Bxf7+ Kg7 $11) 36... Kh8) 35. Bxf7+ {[%emt 0:00:05] White mates.} Kg7 {[%emt 0:00:05]} 36. Bd5+ {[%emt 0:00:12]} Kh8 {[%emt 0:00:05]} 37. Qd4+ {[%emt 0:00:01] Weighted Error Value: White=0.29 (precise) /Black=0.43.  Loses game:     	---       	Black=1      Missed win:     	White=1     	---        Mistake:       	---       	Black=4      Inaccurate:     	White=2     	Black=1      OK:         	White=9     	Black=11     Best:        	White=2     	Black=1      Strong:       	White=2     	Black=1} 1-0

[Event "Polish University-ch Women 2024"]
[Site "Lublin"]
[Date "2024.02.23"]
[Round "5.2"]
[White "Czarnecka, Lidia"]
[Black "Jarocka, Liwia"]
[Result "1-0"]
[ECO "B33"]
[WhiteElo "2034"]
[BlackElo "2199"]
[Annotator "RC"]
[PlyCount "151"]
[EventDate "2024.02.22"]
[EventType "swiss"]
[EventCountry "POL"]
[SourceTitle "playchess.com"]
[Source "ChessBase"]
[SourceQuality "1"]
[TimeControl "600+3"]

1. e4 {[%emt 0:00:01]} c5 {[%emt 0:00:14]} 2. Nf3 {[%emt 0:00:02]} Nc6 {[%emt 0:00:01]} 3. d4 {[%emt 0:00:01]} cxd4 {[%emt 0:00:01]} 4. Nxd4 {[%emt 0:00:01]} Nf6 {[%emt 0:00:02]} 5. Nc3 {[%emt 0:00:13]} e5 {[%emt 0:00:01]} 6. Ndb5 {[%emt 0:00:26]} d6 {[%emt 0:00:01]} 7. Bg5 {[%emt 0:00:14]} a6 {[%emt 0:00:02]} 8. Na3 {[%emt 0:00:02]} b5 {[%emt 0:00:02]} 9. Nd5 {[%emt 0:00:04]} Be7 {[%emt 0:00:03]} 10. Bxf6 {[%emt 0:00:01]} Bxf6 {[%emt 0:00:01]} 11. c4 {[%emt 0:00:01]} b4 {[%emt 0:00:01]} 12. Nc2 {[%emt 0:00:01]} a5 {[%emt 0:00:01]} 13. g3 {[%emt 0:00:01]} Bg5 {[%emt 0:00:28]} 14. Bg2 {[%emt 0:00:01]} O-O {[%emt 0:00:06]} 15. O-O {[%emt 0:00:02]} Kh8 {[%emt 0:00:12]} 16. Qd3 {[%emt 0:00:08]} Bb7 {[%emt 0:00:33]} 17. Rad1 {[%emt 0:00:09]} Bh6 {[%emt 0:00:58]} 18. Nde3 {[%emt 0:00:13]} Bxe3 {[%emt 0:00:10]} 19. Nxe3 {[%emt 0:00:04]} Nd4 {[%emt 0:00:10]} 20. Nc2 {[%emt 0:00:05]} Nxc2 {[%emt 0:00:07]} 21. Qxc2 {[%emt 0:00:02]} Qc7 {[%emt 0:00:15]} 22. b3 {[%emt 0:00:01]} Rad8 {[%emt 0:00:05]} 23. Rd2 {[%emt 0:00:28]} Ra8 {[%emt 0:01:45]} 24. Rfd1 {[%emt 0:00:07]} Ra6 {[%emt 0:00:02]} 25. Rd3 {[%emt 0:00:08]} Qc5 {[%emt 0:01:38]} 26. Qd2 {[%emt 0:00:01]} Rd8 {[%emt 0:00:32]} 27. Qg5 {[%emt 0:00:58]} f6 {[%emt 0:00:06]} 28. Qh5 {[%emt 0:00:02]} Qc7 {[%emt 0:00:28]} 29. Qh4 {[%emt 0:00:30]} Rc6 {[%emt 0:00:21]} 30. Bh3 {[%emt 0:00:33]} Qf7 {[%emt 0:00:42]} 31. Bf5 {[%emt 0:00:12]} g6 {[%emt 0:00:07]} 32. Bh3 {[%emt 0:00:01]} Kg7 {[%emt 0:00:02]} 33. Bg2 {[%emt 0:00:45]} Bc8 {[%emt 0:00:24]} 34. g4 {[%emt 0:00:43]} Qe7 {[%emt 0:00:22]} 35. h3 {[%emt 0:00:29]} Be6 {[%emt 0:00:02]} 36. Qg3 {[%emt 0:00:06]} a4 {[%emt 0:00:11]} 37. Qe3 {[%emt 0:00:06]} axb3 {[%emt 0:00:10]} 38. axb3 {[%emt 0:00:01]} Ra8 {[%emt 0:00:08]} 39. Qd2 {[%emt 0:00:01]} Bf7 {[%emt 0:00:41]} 40. Qxb4 {[%emt 0:00:09]} Ra2 {[%emt 0:00:22]} 41. Rxd6 {[%emt 0:01:31]} Qa7 {[%emt 0:00:01]} 42. R6d2 {[%emt 0:00:37]} Rxd2 {[%emt 0:00:01]} 43. Qxd2 {[%emt 0:00:06]} Qa3 {[%emt 0:00:02]} 44. Rb1 {[%emt 0:00:38]} Rd6 {[%emt 0:00:01]} 45. Qc2 {[%emt 0:00:13]} Qb4 {[%emt 0:00:03]} 46. Rc1 {[%emt 0:00:48]} Rb6 {[%emt 0:00:09]} 47. c5 {[%emt 0:00:14]} Rc6 {[%emt 0:00:07]} 48. Qc3 {[%emt 0:00:08]} Qxb3 {[%emt 0:00:05]} 49. Qxb3 {[%emt 0:00:10]} Bxb3 {[%emt 0:00:00]} 50. Bf1 {[%emt 0:00:02]} Rc7 {[%emt 0:00:27]} 51. Bb5 {[%emt 0:00:09]} Kf8 {[%emt 0:00:00]} 52. Rc3 {[%emt 0:00:06]} Be6 {[%emt 0:00:00]} 53. c6 {[%emt 0:00:03]} Ke7 {[%emt 0:00:00]} 54. Rd3 {[%emt 0:00:02]} h5 {[%emt 0:00:00]} 55. f3 {[%emt 0:00:01]} hxg4 {[%emt 0:00:00]} 56. hxg4 {[%emt 0:00:01]} Rc8 {[%emt 0:00:00]} 57. Kf2 {[%emt 0:00:05]} Rc7 {[%emt 0:00:06]} 58. Ke3 {[%emt 0:00:04]} g5 {[%emt 0:00:02]} 59. Ra3 {[%emt 0:00:01]} Kd6 {[%emt 0:00:05]} 60. Rc3 {[%emt 0:00:09]} Ke7 {[%emt 0:00:01]} 61. Rd3 {[%emt 0:00:06]} Bc8 {[%emt 0:00:02]} 62. Rd2 {[%emt 0:00:02]} Be6 {[%emt 0:00:01]} 63. Rh2 {[%emt 0:00:00]} Kd6 {[%emt 0:00:01]} 64. Rc2 {[%emt 0:00:03]} Ke7 {[%emt 0:00:09]} 65. Kd3 {[%emt 0:00:03]} Kd6 {[%emt 0:00:00]} 66. Kc3 {[%emt 0:00:01]} Ke7 {[%emt 0:00:13]} 67. Kb4 {[%emt 0:00:00]} Bc8 {[%emt 0:00:04]} 68. Kc5 {[%emt 0:00:02]} Ra7 {[%emt 0:00:02]} 69. Rd2 {[%emt 0:00:05]} Ra3 {[%emt 0:00:01]} 70. Rd3 {[%emt 0:00:03]} Ra1 {[%emt 0:00:01]} 71. Kb6 {[%emt 0:00:04]} Be6 {[%emt 0:00:04]} 72. Rc3 {[%emt 0:00:04]} Rb1 {[%emt 0:00:03]} 73. c7 {[%emt 0:00:08]} Bd7 {[%emt 0:00:01]} 74. Rc5 {[%emt 0:00:00]} Bxb5 75. Rxb5 {[%emt 0:00:03]} Rc1 {[%emt 0:00:12]} 76. Kb7 {[%emt 0:00:06]} 1-0

[Event "Polish University-ch Women 2024"]
[Site "Lublin"]
[Date "2024.02.23"]
[Round "5.3"]
[White "Furtak, Joanna"]
[Black "Antolak, Julia"]
[Result "0-1"]
[ECO "B64"]
[WhiteElo "1883"]
[BlackElo "2309"]
[Annotator "TA"]
[PlyCount "72"]
[EventDate "2024.02.22"]
[EventType "swiss"]
[EventCountry "POL"]
[SourceTitle "playchess.com"]
[Source "ChessBase"]
[SourceQuality "1"]
[TimeControl "600+3"]

{[%evp 24,72,-15,-67,109,108,250,228,370,175,373,189,369,291,288,185,170,145,126,137,136,100,96,91,188,141,150,-293,-284,-272,-263,-1060,-1066,-1079,-1077,-1079,-910,-1073,-1058,-1058,-1059,-1042,-898,-1229,-1184,-1612,-1517,-2020,-1778,-5285,-5281]} 1. e4 {[%emt 0:10:06]} c5 {[%emt 0:00:02]} 2. Nf3 {[%emt 0:00:00]} e6 {[%emt 0:00:01]} 3. d4 {[%emt 0:00:00]} cxd4 {[%emt 0:00:01]} 4. Nxd4 {[%emt 0:00:00]} Nf6 {[%emt 0:00:02]} 5. Nc3 {[%emt 0:00:00]} d6 {[%emt 0:00:01]} 6. Bg5 {[%emt 0:00:00]} Be7 {[%emt 0:00:04]} 7. Qd2 {[%emt 0:00:00]} Nc6 {[%emt 0:00:02]} 8. f4 {[%emt 0:00:00]} h6 {[%emt 0:00:09]} 9. Bxf6 {[%emt 0:00:00]} Bxf6 {[%emt 0:00:15]} 10. Ndb5 {[%emt 0:00:00]} O-O {[%emt 0:00:51]} 11. O-O-O {[%emt 0:00:00]} Qa5 {[%emt 0:03:05]} 12. Bc4 {[%emt 0:00:00]} Rd8 {[%emt 0:00:29]} 13. Nxd6 {[%emt 0:00:00]} ({White should play} 13. Qe1 $11) 13... Bxc3 $2 {[%emt 0:02:30]} (13... Be7 $1 $15 {stays ahead.} 14. e5 Nxe5) 14. Qxc3 $16 {[%emt 0:00:00]} (14. bxc3 Qa3+ 15. Kb1 b5 $15) 14... Qb6 {[%emt 0:00:05]} (14... Qxc3 $16 15. bxc3 Na5) 15. e5 $18 {[%emt 0:00:00]} Bd7 {[%emt 0:00:24]} (15... Qb4 $142 16. Qxb4 Nxb4) 16. Qb3 {[%emt 0:00:14]} (16. f5 $142) 16... Qf2 $2 {[%emt 0:00:59]} (16... Qxb3 17. axb3 Rab8) 17. Qg3 {[%emt 0:00:12]} (17. Qxb7 Rab8 (17... Qxf4+ 18. Kb1 $17) 18. Qc7 (18. Rd2 Qxf4 19. Qc7 Nxe5 $17) 18... Qxf4+ 19. Kb1 Qxe5 $17) (17. Nxb7 Qxf4+ 18. Kb1 Rab8 $11) (17. Rhf1 $142 Qxg2 18. Rd2 (18. Nxb7 Rab8 $16)) 17... Qc5 {[%emt 0:00:16]} (17... Qxg3 18. hxg3 Rab8) 18. Bb3 {[%emt 0:00:10]} (18. Nxb7 Qxc4 19. Nxd8 Nb4 $17 (19... Rxd8 20. b3 $11)) 18... Nd4 {[%emt 0:00:22]} 19. Qd3 {[%emt 0:00:09] Prevents Ne2+.} ({Less strong is} 19. Nxb7 Ne2+ 20. Kb1 Nxg3 $14) 19... Nxb3+ {[%emt 0:00:05]} 20. axb3 {[%emt 0:00:04]} Bc6 {[%emt 0:00:01]} 21. Rhg1 {[%emt 0:00:03]} a5 {[%emt 0:00:02]} 22. Qc4 {[%emt 0:00:03]} Qe3+ {[%emt 0:00:10]} 23. Kb1 {[%emt 0:00:02]} a4 {[%emt 0:00:00] [#]} (23... Bd5 $16 {might work better.} 24. Qd4 Qxd4 25. Rxd4 f6) 24. Rge1 {[%emt 0:00:06]} (24. b4 $1 $18) 24... Qb6 {[%emt 0:00:16]} 25. bxa4 {[%emt 0:00:02]} (25. b4 $16 {is necessary to keep the advantage.}) 25... Rxa4 $19 {[%emt 0:00:05]} 26. Qc3 {[%emt 0:00:01]} Rda8 $1 {[%emt 0:00:09][%csl Ga8][%cal Ra4a1]} ({Resist} 26... Rxf4 27. b3 $17) (26... Bxg2 27. Nc8 Rxd1+ 28. Rxd1 $17) 27. Kc1 $2 {[%emt 0:00:02]} (27. b3) 27... Qf2 {[%emt 0:00:13][%cal Ra4a1] [#] Black is clearly winning.} 28. b3 {[%emt 0:00:08]} Ra1+ {[%emt 0:00:02]} (28... Rxf4 $2 29. Rf1 Qxf1 30. Rxf1 Rxf1+ 31. Kb2 $19) 29. Qxa1 {[%emt 0:00:02]} Rxa1+ {[%emt 0:00:01]} 30. Kb2 {[%emt 0:00:01]} Rxd1 {[%emt 0:00:12]} 31. Rxd1 {[%emt 0:00:02]} Qxf4 {[%emt 0:00:01]} 32. Nc4 {[%emt 0:00:01]} Bd5 {[%emt 0:00:02]} 33. Nb6 {[%emt 0:00:02]} Qxe5+ {[%emt 0:00:01]} 34. Ka2 {[%emt 0:00:03]} Qxh2 {[%emt 0:00:02]} 35. Nxd5 {[%emt 0:00:02]} exd5 {[%emt 0:00:01]} 36. Rxd5 {[%emt 0:00:01]} Qxg2 {[%emt 0:00:00] Weighted Error Value: White=1.43/Black=0.59.  Loses game:     	White=1     	---        Mistake:       	White=4     	Black=5      Inaccurate:     	White=1     	---        OK:         	White=2     	Black=5      Best:        	White=2     	---        Strong:       	---       	Black=1} 0-1